[Event "*** Titled Tuesday Blitz"]
[Site "Chess.com"]
[Date "2021.03.02"]
[Round "11"]
[White "Shuvalov"]
[Black "The_Machine04"]
[Result "1-0"]
[WhiteElo "2539"]
[BlackElo "2406"]
[TimeControl "180+1"]
[EndTime "12:11:01 PST"]
[Termination "Shuvalov won on time"]

1. Nf3 {[%clk 0:02:54.4]} 1... d6 {[%clk 0:03:00.9]} 2. d4 {[%clk 0:02:54.2]}
2... Nf6 {[%clk 0:03:00.8]} 3. c4 {[%clk 0:02:54.4]} 3... g6 {[%clk 0:02:54.8]}
4. Nc3 {[%clk 0:02:54.2]} 4... Bf5 {[%clk 0:02:47.9]} 5. Nd2 {[%clk 0:02:50.9]}
5... Bd7 {[%clk 0:02:43.8]} 6. e4 {[%clk 0:02:49.6]} 6... e5 {[%clk 0:02:42.2]}
7. Nb3 {[%clk 0:02:46.9]} 7... Bg7 {[%clk 0:02:40.6]} 8. Be2 {[%clk 0:02:44.5]}
8... O-O {[%clk 0:02:39.9]} 9. Be3 {[%clk 0:02:43.6]} 9... Nc6 {[%clk
0:02:39.4]} 10. O-O {[%clk 0:02:40.6]} 10... Re8 {[%clk 0:02:38.7]} 11. d5
{[%clk 0:02:37.6]} 11... Ne7 {[%clk 0:02:38.3]} 12. c5 {[%clk 0:02:34.6]} 12...
h6 {[%clk 0:02:34.7]} 13. Rc1 {[%clk 0:02:30.5]} 13... a6 {[%clk 0:02:28.3]} 14.
Na5 {[%clk 0:02:20.1]} 14... Bc8 {[%clk 0:02:03]} 15. Nc4 {[%clk 0:02:07.3]}
15... Kh7 {[%clk 0:01:54.5]} 16. cxd6 {[%clk 0:01:48.4]} 16... cxd6 {[%clk
0:01:53.9]} 17. Bb6 {[%clk 0:01:43.4]} 17... Qd7 {[%clk 0:01:52.8]} 18. Ba5
{[%clk 0:01:32.2]} 18... Rb8 {[%clk 0:01:43.4]} 19. Nb6 {[%clk 0:01:26.4]} 19...
Qd8 {[%clk 0:01:37.8]} 20. b4 {[%clk 0:01:25.3]} 20... Neg8 {[%clk 0:01:27.9]}
21. f3 {[%clk 0:01:15.7]} 21... Qe7 {[%clk 0:01:21.1]} 22. Nxc8 {[%clk
0:01:13.4]} 22... Rexc8 {[%clk 0:01:22]} 23. Na4 {[%clk 0:01:10.9]} 23... Qe8
{[%clk 0:01:15.1]} 24. Nb6 {[%clk 0:01:07.9]} 24... Rxc1 {[%clk 0:01:14.2]} 25.
Qxc1 {[%clk 0:01:08.8]} 25... Nd7 {[%clk 0:01:11]} 26. Qc7 {[%clk 0:01:03.9]}
26... Nxb6 {[%clk 0:01:10.7]} 27. Bxb6 {[%clk 0:01:04.1]} 27... Bf8 {[%clk
0:01:10.6]} 28. Rc1 {[%clk 0:01:02]} 28... Nf6 {[%clk 0:01:09.8]} 29. Bd1 {[%clk
0:00:57.1]} 29... Kg7 {[%clk 0:01:07.4]} 30. Ba4 {[%clk 0:00:49.2]} 30... Qxa4
{[%clk 0:00:59.5]} 31. Qxb8 {[%clk 0:00:49.4]} 31... Qxb4 {[%clk 0:00:55.1]} 32.
Qxb7 {[%clk 0:00:46.1]} 32... Qd2 {[%clk 0:00:40.2]} 33. Qc6 {[%clk 0:00:42.8]}
33... Nd7 {[%clk 0:00:34.2]} 34. Bf2 {[%clk 0:00:25.1]} 34... Nc5 {[%clk
0:00:25.4]} 35. Rf1 {[%clk 0:00:24.9]} 35... Nd3 {[%clk 0:00:14.7]} 36. Qxa6
{[%clk 0:00:18.9]} 36... Be7 {[%clk 0:00:09]} 37. Qb5 {[%clk 0:00:11.7]} 37...
Bg5 {[%clk 0:00:08.3]} 38. Bb6 {[%clk 0:00:09.5]} 38... Be3+ {[%clk 0:00:07]}
39. Bxe3 {[%clk 0:00:08.9]} 39... Qxe3+ {[%clk 0:00:07.9]} 40. Kh1 {[%clk
0:00:08.6]} 40... Nf2+ {[%clk 0:00:07.9]} 41. Rxf2 {[%clk 0:00:08.1]} 41... Qxf2
{[%clk 0:00:08.8]} 42. h3 {[%clk 0:00:08.5]} 42... Qxa2 {[%clk 0:00:07.5]} 43.
Qf1 {[%clk 0:00:07.8]} 43... Qa3 {[%clk 0:00:07.5]} 44. Kh2 {[%clk 0:00:07.7]}
44... Qc5 {[%clk 0:00:08]} 45. Qd1 {[%clk 0:00:07.5]} 45... h5 {[%clk 0:00:08]}
46. Qd2 {[%clk 0:00:07.8]} 46... Kf6 {[%clk 0:00:08.3]} 47. h4 {[%clk
0:00:07.8]} 47... Kg7 {[%clk 0:00:08.8]} 48. Kh3 {[%clk 0:00:07.2]} 48... f6
{[%clk 0:00:08.9]} 49. Kh2 {[%clk 0:00:06.8]} 49... Kf7 {[%clk 0:00:08.5]} 50.
Qa2 {[%clk 0:00:06.4]} 50... Qc7 {[%clk 0:00:07.5]} 51. Qd2 {[%clk 0:00:06.3]}
51... Kg7 {[%clk 0:00:07.8]} 52. Qe3 {[%clk 0:00:05.8]} 52... Qe7 {[%clk
0:00:08.1]} 53. Qc3 {[%clk 0:00:05.2]} 53... g5 {[%clk 0:00:08.4]} 54. hxg5
{[%clk 0:00:04.8]} 54... fxg5 {[%clk 0:00:09.3]} 55. Qc6 {[%clk 0:00:04.8]}
55... Kg6 {[%clk 0:00:09.6]} 56. Qc8 {[%clk 0:00:04.9]} 56... Qf6 {[%clk
0:00:09.4]} 57. Qg8+ {[%clk 0:00:04.8]} 57... Kh6 {[%clk 0:00:09.8]} 58. Qe8
{[%clk 0:00:04.5]} 58... h4 {[%clk 0:00:08.5]} 59. Kh1 {[%clk 0:00:04.8]} 59...
Kg7 {[%clk 0:00:07.5]} 60. Qd7+ {[%clk 0:00:04.6]} 60... Kg6 {[%clk 0:00:08]}
61. Qg4 {[%clk 0:00:05.5]} 61... Qf4 {[%clk 0:00:04.3]} 62. Qe6+ {[%clk
0:00:05.5]} 62... Qf6 {[%clk 0:00:04.6]} 63. Qg4 {[%clk 0:00:04.3]} 63... Kh6
{[%clk 0:00:04.9]} 64. Kg1 {[%clk 0:00:03.9]} 64... Qf4 {[%clk 0:00:03.8]} 65.
Qe6+ {[%clk 0:00:04]} 65... Kh5 {[%clk 0:00:03.4]} 66. Qe8+ {[%clk 0:00:03.2]}
66... Kh6 {[%clk 0:00:02.9]} 67. Qe6+ {[%clk 0:00:02.8]} 67... Kg7 {[%clk
0:00:03]} 68. Qd7+ {[%clk 0:00:02.6]} 68... Qf7 {[%clk 0:00:02.5]} 69. Qg4
{[%clk 0:00:01.7]} 1-0

[Event "*** Titled Tuesday Blitz"]
[Site "Chess.com"]
[Date "2021.03.02"]
[Round "11"]
[White "KuzubovYuriy"]
[Black "NTBT_DHS"]
[Result "1-0"]
[WhiteElo "2919"]
[BlackElo "2773"]
[TimeControl "180+1"]
[EndTime "12:11:08 PST"]
[Termination "KuzubovYuriy won by resignation"]

1. d4 {[%clk 0:03:00.9]} 1... Nf6 {[%clk 0:02:59.8]} 2. Nf3 {[%clk 0:03:01]}
2... g6 {[%clk 0:02:59.8]} 3. Nbd2 {[%clk 0:03:01.3]} 3... Bg7 {[%clk
0:02:59.9]} 4. e4 {[%clk 0:03:01.1]} 4... O-O {[%clk 0:02:59.8]} 5. Be2 {[%clk
0:03:00.6]} 5... d6 {[%clk 0:02:59.6]} 6. O-O {[%clk 0:03:00.7]} 6... Nc6 {[%clk
0:02:57.3]} 7. Re1 {[%clk 0:02:58.1]} 7... e5 {[%clk 0:02:55.1]} 8. dxe5 {[%clk
0:02:57.8]} 8... Nxe5 {[%clk 0:02:54.8]} 9. Nxe5 {[%clk 0:02:57.8]} 9... dxe5
{[%clk 0:02:55.7]} 10. c3 {[%clk 0:02:55.5]} 10... Be6 {[%clk 0:02:54.7]} 11.
Qc2 {[%clk 0:02:51.7]} 11... c6 {[%clk 0:02:54.6]} 12. a4 {[%clk 0:02:50.9]}
12... Qc7 {[%clk 0:02:54.7]} 13. b4 {[%clk 0:02:48.7]} 13... Rac8 {[%clk
0:02:42.7]} 14. Bf1 {[%clk 0:02:36.1]} 14... Rfd8 {[%clk 0:02:41.3]} 15. Nb3
{[%clk 0:02:33.3]} 15... b6 {[%clk 0:02:35.6]} 16. Bg5 {[%clk 0:02:20.2]} 16...
h6 {[%clk 0:02:33.7]} 17. Bh4 {[%clk 0:02:20.3]} 17... g5 {[%clk 0:02:33.3]} 18.
Bg3 {[%clk 0:02:20.2]} 18... Nh5 {[%clk 0:02:33.6]} 19. Nd2 {[%clk 0:02:17]}
19... Nf4 {[%clk 0:02:31.7]} 20. Nc4 {[%clk 0:02:14.8]} 20... Qe7 {[%clk
0:01:53.6]} 21. Ne3 {[%clk 0:02:04.9]} 21... h5 {[%clk 0:01:50.3]} 22. f3 {[%clk
0:02:02]} 22... Rd7 {[%clk 0:01:45]} 23. Bc4 {[%clk 0:01:56.7]} 23... Rcd8
{[%clk 0:01:44.8]} 24. Bxe6 {[%clk 0:01:56.2]} 24... Qxe6 {[%clk 0:01:44.4]} 25.
Red1 {[%clk 0:01:53.4]} 25... h4 {[%clk 0:01:39.7]} 26. Rxd7 {[%clk 0:01:44.6]}
26... Rxd7 {[%clk 0:01:36.7]} 27. Bf2 {[%clk 0:01:43]} 27... c5 {[%clk
0:01:19.4]} 28. bxc5 {[%clk 0:01:38.3]} 28... bxc5 {[%clk 0:01:20.3]} 29. c4
{[%clk 0:01:33.6]} 29... h3 {[%clk 0:01:10.8]} 30. g3 {[%clk 0:01:33.1]} 30...
Nd3 {[%clk 0:01:10.3]} 31. Nd5 {[%clk 0:01:29.9]} 31... Nxf2 {[%clk 0:01:08.8]}
32. Kxf2 {[%clk 0:01:29.2]} 32... g4 {[%clk 0:01:06.9]} 33. Rb1 {[%clk
0:01:23.9]} 33... gxf3 {[%clk 0:01:06.5]} 34. Qd3 {[%clk 0:01:22.9]} 34... Rd8
{[%clk 0:01:04.1]} 35. Qxf3 {[%clk 0:01:21.7]} 35... Qa6 {[%clk 0:01:02.1]} 36.
Qb3 {[%clk 0:01:05.5]} 36... Kh7 {[%clk 0:00:59.3]} 37. g4 {[%clk 0:01:03.9]}
37... Qh6 {[%clk 0:00:58.5]} 38. Qe3 {[%clk 0:01:02.6]} 38... Qh4+ {[%clk
0:00:54.7]} 39. Qg3 {[%clk 0:01:02.6]} 39... Qh6 {[%clk 0:00:55.2]} 40. g5
{[%clk 0:00:57.3]} 40... Qh5 {[%clk 0:00:55.7]} 41. Rb3 {[%clk 0:00:57]} 41...
Kg8 {[%clk 0:00:53]} 42. Qxh3 {[%clk 0:00:44.8]} 42... Qxg5 {[%clk 0:00:47.3]}
43. Rd3 {[%clk 0:00:38.8]} 43... Rd6 {[%clk 0:00:43.8]} 44. Qg3 {[%clk
0:00:35.9]} 44... Qd8 {[%clk 0:00:37.6]} 45. Rb3 {[%clk 0:00:29.3]} 45... Kf8
{[%clk 0:00:37.2]} 46. Ke2 {[%clk 0:00:26.4]} 46... Rg6 {[%clk 0:00:35.4]} 47.
Qf2 {[%clk 0:00:25.1]} 47... Kg8 {[%clk 0:00:35.1]} 48. Rb7 {[%clk 0:00:23.5]}
48... Qg5 {[%clk 0:00:14.3]} 49. Ne7+ {[%clk 0:00:22.3]} 49... Kh7 {[%clk
0:00:14.7]} 50. Nxg6 {[%clk 0:00:22.3]} 50... fxg6 {[%clk 0:00:15.6]} 51. Qg3
{[%clk 0:00:19.9]} 51... Qc1 {[%clk 0:00:14.1]} 52. Qh4+ {[%clk 0:00:18.5]}
52... Kg8 {[%clk 0:00:14.7]} 53. Rb8+ {[%clk 0:00:14.9]} 53... Bf8 {[%clk
0:00:15.1]} 54. Qd8 {[%clk 0:00:12.4]} 54... Qxc4+ {[%clk 0:00:13.6]} 55. Qd3
{[%clk 0:00:12.4]} 55... Qa2+ {[%clk 0:00:11.3]} 56. Qd2 {[%clk 0:00:09]} 56...
Qc4+ {[%clk 0:00:10.2]} 57. Kf3 {[%clk 0:00:08.5]} 57... Qf7+ {[%clk 0:00:10]}
58. Kg2 {[%clk 0:00:08]} 58... Kg7 {[%clk 0:00:10.7]} 59. Rd8 {[%clk 0:00:05.4]}
59... Qf6 {[%clk 0:00:08.8]} 60. Rd7+ {[%clk 0:00:05.6]} 60... Be7 {[%clk
0:00:06.5]} 61. Qf2 {[%clk 0:00:04.7]} 61... Qg5+ {[%clk 0:00:06.6]} 62. Kh1
{[%clk 0:00:03.8]} 62... Qc1+ {[%clk 0:00:05.8]} 63. Qg1 {[%clk 0:00:03.8]}
63... Qxg1+ {[%clk 0:00:04.2]} 64. Kxg1 {[%clk 0:00:04]} 64... Kf6 {[%clk
0:00:04.9]} 65. Rxa7 {[%clk 0:00:04.3]} 65... Ke6 {[%clk 0:00:05]} 66. Kf2
{[%clk 0:00:04.3]} 66... c4 {[%clk 0:00:05.2]} 67. Ra6+ {[%clk 0:00:04.5]} 67...
Kf7 {[%clk 0:00:05.6]} 68. Ke3 {[%clk 0:00:04.8]} 68... Bc5+ {[%clk 0:00:06.3]}
69. Kd2 {[%clk 0:00:04.9]} 69... Bg1 {[%clk 0:00:07.2]} 70. h3 {[%clk
0:00:04.7]} 70... Bd4 {[%clk 0:00:08.1]} 71. Rc6 {[%clk 0:00:04.8]} 71... c3+
{[%clk 0:00:08]} 72. Rxc3 {[%clk 0:00:05.1]} 72... Kf6 {[%clk 0:00:06.6]} 73.
Rc6+ {[%clk 0:00:04.8]} 73... Kg5 {[%clk 0:00:07]} 74. Kd3 {[%clk 0:00:05.5]}
74... Kh5 {[%clk 0:00:06.2]} 75. a5 {[%clk 0:00:05.1]} 75... g5 {[%clk
0:00:07.1]} 76. a6 {[%clk 0:00:05.2]} 76... Kh4 {[%clk 0:00:07.5]} 77. Rh6+
{[%clk 0:00:05.4]} 77... Kg3 {[%clk 0:00:08.1]} 78. Rh7 {[%clk 0:00:06]} 78...
Kf4 {[%clk 0:00:08.6]} 79. a7 {[%clk 0:00:05.5]} 79... Bxa7 {[%clk 0:00:07.9]}
80. Rxa7 {[%clk 0:00:06.4]} 80... Kg3 {[%clk 0:00:08.4]} 81. Rg7 {[%clk
0:00:06.5]} 1-0

[Event "*** Titled Tuesday Blitz"]
[Site "Chess.com"]
[Date "2021.03.02"]
[Round "11"]
[White "rpragchess"]
[Black "howitzer14"]
[Result "1-0"]
[WhiteElo "2888"]
[BlackElo "3001"]
[TimeControl "180+1"]
[EndTime "12:11:19 PST"]
[Termination "rpragchess won by resignation"]

1. e4 {[%clk 0:03:00.9]} 1... e5 {[%clk 0:02:55.8]} 2. Nf3 {[%clk 0:03:00.8]}
2... Nc6 {[%clk 0:02:55.1]} 3. Bb5 {[%clk 0:03:00.4]} 3... Nge7 {[%clk
0:02:53.7]} 4. c3 {[%clk 0:02:57.7]} 4... d5 {[%clk 0:02:53.5]} 5. d4 {[%clk
0:02:34.8]} 5... exd4 {[%clk 0:02:51.7]} 6. exd5 {[%clk 0:02:30.4]} 6... Qxd5
{[%clk 0:02:50.5]} 7. Qa4 {[%clk 0:02:22.6]} 7... a6 {[%clk 0:02:32.8]} 8. Bxc6+
{[%clk 0:02:11.2]} 8... Qxc6 {[%clk 0:02:20.8]} 9. Qxd4 {[%clk 0:02:06]} 9...
Nf5 {[%clk 0:02:19.6]} 10. Qe5+ {[%clk 0:02:00]} 10... Be6 {[%clk 0:02:17.3]}
11. O-O {[%clk 0:01:53.8]} 11... O-O-O {[%clk 0:02:12.4]} 12. Qe2 {[%clk
0:01:53.4]} 12... Bc4 {[%clk 0:02:09.2]} 13. Qe5 {[%clk 0:01:35.6]} 13... Bxf1
{[%clk 0:02:01.8]} 14. Qxf5+ {[%clk 0:01:34.6]} 14... Kb8 {[%clk 0:01:56.1]} 15.
Nbd2 {[%clk 0:01:15.3]} 15... Bd3 {[%clk 0:01:55.7]} 16. Qxf7 {[%clk 0:01:15.5]}
16... Bd6 {[%clk 0:01:52.4]} 17. Nb3 {[%clk 0:01:13.4]} 17... Rhf8 {[%clk
0:01:46.6]} 18. Qh5 {[%clk 0:01:10.9]} 18... Bg6 {[%clk 0:01:34.3]} 19. Qg4
{[%clk 0:01:07.6]} 19... Qe4 {[%clk 0:01:29]} 20. Qxe4 {[%clk 0:01:03]} 20...
Bxe4 {[%clk 0:01:29.9]} 21. Ng5 {[%clk 0:01:03.9]} 21... Bd5 {[%clk 0:01:23.2]}
22. Nd4 {[%clk 0:00:34.1]} 22... h6 {[%clk 0:01:22]} 23. Ngf3 {[%clk 0:00:27]}
23... c5 {[%clk 0:01:21.3]} 24. Ne2 {[%clk 0:00:27.3]} 24... Bxf3 {[%clk
0:01:11.8]} 25. gxf3 {[%clk 0:00:28.2]} 25... Rxf3 {[%clk 0:01:12.3]} 26. Be3
{[%clk 0:00:28.8]} 26... b6 {[%clk 0:01:12.2]} 27. Kg2 {[%clk 0:00:28]} 27...
Rf7 {[%clk 0:01:12.1]} 28. b4 {[%clk 0:00:27.2]} 28... Rc7 {[%clk 0:01:07.2]}
29. Rd1 {[%clk 0:00:25.2]} 29... Kc8 {[%clk 0:01:06]} 30. a3 {[%clk 0:00:21.8]}
30... Rdd7 {[%clk 0:00:59.6]} 31. Rb1 {[%clk 0:00:21.3]} 31... b5 {[%clk
0:00:57.3]} 32. Ra1 {[%clk 0:00:20.1]} 32... Kd8 {[%clk 0:00:51.8]} 33. a4
{[%clk 0:00:13.3]} 33... cxb4 {[%clk 0:00:49.6]} 34. cxb4 {[%clk 0:00:12.9]}
34... Bxb4 {[%clk 0:00:50.5]} 35. Bb6 {[%clk 0:00:12.5]} 35... Bc5 {[%clk
0:00:24.2]} 36. Bxc7+ {[%clk 0:00:12.1]} 36... Kxc7 {[%clk 0:00:23.2]} 37. Rc1
{[%clk 0:00:09.9]} 37... Kb6 {[%clk 0:00:22.8]} 38. a5+ {[%clk 0:00:10.2]} 38...
Kc6 {[%clk 0:00:22.4]} 39. Nf4 {[%clk 0:00:10.9]} 39... Rd6 {[%clk 0:00:18.9]}
40. Kf3 {[%clk 0:00:10]} 40... b4 {[%clk 0:00:19]} 41. Ke4 {[%clk 0:00:10.3]}
41... Rd4+ {[%clk 0:00:16.9]} 42. Ke5 {[%clk 0:00:10.3]} 42... Kb5 {[%clk
0:00:15.8]} 43. Ne6 {[%clk 0:00:09.9]} 43... Rd2 {[%clk 0:00:04.8]} 44. Rxc5+
{[%clk 0:00:08.4]} 44... Ka4 {[%clk 0:00:05.2]} 45. Nd4 {[%clk 0:00:07]} 45...
Rxf2 {[%clk 0:00:03.7]} 46. h4 {[%clk 0:00:03.2]} 46... Rf1 {[%clk 0:00:02.3]}
47. h5 {[%clk 0:00:02.6]} 47... Re1+ {[%clk 0:00:02.4]} 48. Kd6 {[%clk
0:00:02.5]} 48... b3 {[%clk 0:00:02.7]} 49. Rc4+ {[%clk 0:00:02.7]} 49... Ka3
{[%clk 0:00:03.2]} 50. Rc3 {[%clk 0:00:03.3]} 50... Rd1 {[%clk 0:00:03.1]} 51.
Kc5 {[%clk 0:00:02.9]} 51... Ka4 {[%clk 0:00:02.4]} 52. Rc4+ {[%clk 0:00:02.3]}
52... Ka3 {[%clk 0:00:02.4]} 53. Rc3 {[%clk 0:00:02.8]} 53... Ka4 {[%clk
0:00:03]} 54. Nxb3 {[%clk 0:00:03.1]} 54... Rd8 {[%clk 0:00:02.9]} 55. Kc4
{[%clk 0:00:01.4]} 55... Rc8+ {[%clk 0:00:03]} 56. Kd3 {[%clk 0:00:02.1]} 56...
Rb8 {[%clk 0:00:02.9]} 57. Nd4 {[%clk 0:00:02]} 57... Rd8 {[%clk 0:00:01.6]} 58.
Rc5 {[%clk 0:00:02.4]} 58... Kb4 {[%clk 0:00:01.8]} 59. Re5 {[%clk 0:00:01.9]}
59... Rd7 {[%clk 0:00:02.4]} 60. Ke4 {[%clk 0:00:02.4]} 60... Ka4 {[%clk
0:00:03.1]} 61. Nf5 {[%clk 0:00:02.8]} 61... Rb7 {[%clk 0:00:03.7]} 62. Ne3
{[%clk 0:00:02.6]} 62... Rb4+ {[%clk 0:00:04.1]} 63. Kf5 {[%clk 0:00:03.1]}
63... Kb3 {[%clk 0:00:04.7]} 64. Ng4 {[%clk 0:00:03.5]} 64... Ra4 {[%clk
0:00:04.4]} 65. Nf2 {[%clk 0:00:03.6]} 65... Rh4 {[%clk 0:00:04.9]} 66. Kg6
{[%clk 0:00:02.6]} 66... Rf4 {[%clk 0:00:05.4]} 67. Ne4 {[%clk 0:00:03.1]} 67...
Rg4+ {[%clk 0:00:05.5]} 68. Kf5 {[%clk 0:00:02.6]} 68... Rg1 {[%clk 0:00:05.2]}
69. Nd6 {[%clk 0:00:02.1]} 69... Kb4 {[%clk 0:00:04.3]} 70. Ke6 {[%clk
0:00:02.6]} 70... Ra1 {[%clk 0:00:03.8]} 71. Ne8 {[%clk 0:00:02.1]} 71... Rxa5
{[%clk 0:00:03.1]} 72. Nxg7 {[%clk 0:00:02.4]} 72... Ra1 {[%clk 0:00:02.1]} 73.
Nf5 {[%clk 0:00:02.1]} 73... a5 {[%clk 0:00:02.6]} 74. Nxh6 {[%clk 0:00:02.7]}
74... a4 {[%clk 0:00:03.3]} 75. Nf5 {[%clk 0:00:03.2]} 75... a3 {[%clk
0:00:03.9]} 76. Ne3 {[%clk 0:00:03.8]} 76... Rh1 {[%clk 0:00:03.8]} 77. Nc2+
{[%clk 0:00:04.1]} 77... Kb3 {[%clk 0:00:04.3]} 78. Nxa3 {[%clk 0:00:04.6]}
78... Kxa3 {[%clk 0:00:05.2]} 79. Kf6 {[%clk 0:00:05.2]} 79... Kb4 {[%clk
0:00:05.8]} 80. Rg5 {[%clk 0:00:04.5]} 80... Kc4 {[%clk 0:00:06.4]} 81. Kg7
{[%clk 0:00:05.2]} 81... Kd4 {[%clk 0:00:06.8]} 82. h6 {[%clk 0:00:05.8]} 82...
Ra1 {[%clk 0:00:07.4]} 83. h7 {[%clk 0:00:05.7]} 83... Ra7+ {[%clk 0:00:08.3]}
1-0

[Event "*** Titled Tuesday Blitz"]
[Site "Chess.com"]
[Date "2021.03.02"]
[Round "11"]
[White "Hikaru"]
[Black "fearless_guy"]
[Result "1/2-1/2"]
[WhiteElo "3222"]
[BlackElo "2856"]
[TimeControl "180+1"]
[EndTime "12:11:36 PST"]
[Termination "Game drawn by stalemate"]

1. e4 {[%clk 0:03:00.9]} 1... e6 {[%clk 0:02:58]} 2. d4 {[%clk 0:02:59.2]} 2...
d5 {[%clk 0:02:58.5]} 3. Nd2 {[%clk 0:03:00.1]} 3... c5 {[%clk 0:02:58.2]} 4.
Ngf3 {[%clk 0:02:53.3]} 4... cxd4 {[%clk 0:02:57.8]} 5. Nxd4 {[%clk 0:02:53.4]}
5... Nf6 {[%clk 0:02:58]} 6. e5 {[%clk 0:02:53.2]} 6... Nfd7 {[%clk 0:02:57.9]}
7. f4 {[%clk 0:02:53.7]} 7... Nxe5 {[%clk 0:02:57.3]} 8. c3 {[%clk 0:02:47.6]}
8... Nec6 {[%clk 0:02:55.9]} 9. N2f3 {[%clk 0:02:47.6]} 9... Bc5 {[%clk
0:02:53.5]} 10. Be3 {[%clk 0:02:47.4]} 10... Bb6 {[%clk 0:02:50.6]} 11. Bd3
{[%clk 0:02:47.1]} 11... Nxd4 {[%clk 0:02:26.7]} 12. cxd4 {[%clk 0:02:46.8]}
12... Nc6 {[%clk 0:02:26.2]} 13. O-O {[%clk 0:02:46.9]} 13... Bd7 {[%clk
0:02:23.5]} 14. Qe2 {[%clk 0:02:41.9]} 14... g6 {[%clk 0:02:17.5]} 15. Rad1
{[%clk 0:02:36.1]} 15... Rc8 {[%clk 0:02:17.5]} 16. Qf2 {[%clk 0:02:35.7]} 16...
Nb4 {[%clk 0:02:14.3]} 17. Bb1 {[%clk 0:02:36]} 17... Bb5 {[%clk 0:02:10.3]} 18.
Rfe1 {[%clk 0:02:35.7]} 18... Qc7 {[%clk 0:01:48]} 19. Ne5 {[%clk 0:02:15.6]}
19... O-O {[%clk 0:01:10.3]} 20. f5 {[%clk 0:01:51.4]} 20... exf5 {[%clk
0:01:11.2]} 21. Bh6 {[%clk 0:01:50.9]} 21... Rfe8 {[%clk 0:00:54.1]} 22. Bxf5
{[%clk 0:01:49.4]} 22... Rxe5 {[%clk 0:00:47.9]} 23. Bxc8 {[%clk 0:01:13]} 23...
Rxe1+ {[%clk 0:00:36.7]} 24. Qxe1 {[%clk 0:01:13.2]} 24... Nxa2 {[%clk
0:00:15.7]} 25. Bg4 {[%clk 0:01:07]} 25... Qd6 {[%clk 0:00:13.6]} 26. Be2 {[%clk
0:00:49.7]} 26... Bd7 {[%clk 0:00:11.7]} 27. Bg4 {[%clk 0:00:37.4]} 27... f5
{[%clk 0:00:11.3]} 28. Bf3 {[%clk 0:00:37.2]} 28... Nb4 {[%clk 0:00:11.2]} 29.
Kh1 {[%clk 0:00:37.1]} 29... a5 {[%clk 0:00:06.2]} 30. Qh4 {[%clk 0:00:34.4]}
30... Nc6 {[%clk 0:00:05.8]} 31. Bf4 {[%clk 0:00:33.4]} 31... Qe6 {[%clk
0:00:04.4]} 32. Re1 {[%clk 0:00:33.6]} 32... Qf7 {[%clk 0:00:04]} 33. Be5 {[%clk
0:00:34.2]} 33... Bd8 {[%clk 0:00:03.7]} 34. Qf4 {[%clk 0:00:32.8]} 34... Be6
{[%clk 0:00:03.6]} 35. Qe3 {[%clk 0:00:31.2]} 35... Bd7 {[%clk 0:00:04]} 36. Qb3
{[%clk 0:00:30.3]} 36... Be6 {[%clk 0:00:03.8]} 37. Qb5 {[%clk 0:00:28.1]} 37...
Qd7 {[%clk 0:00:02.4]} 38. Bf4 {[%clk 0:00:26.4]} 38... Bf7 {[%clk 0:00:03]} 39.
Qc5 {[%clk 0:00:24.8]} 39... Kg7 {[%clk 0:00:03.5]} 40. Qc1 {[%clk 0:00:23.2]}
40... Kg8 {[%clk 0:00:03]} 41. Qe3 {[%clk 0:00:20]} 41... Kg7 {[%clk 0:00:01.9]}
42. Bh6+ {[%clk 0:00:19.5]} 42... Kg8 {[%clk 0:00:02.3]} 43. g3 {[%clk
0:00:18.3]} 43... Bf6 {[%clk 0:00:02.8]} 44. Qf4 {[%clk 0:00:18.5]} 44... Bd8
{[%clk 0:00:02.8]} 45. h4 {[%clk 0:00:17.8]} 45... Qc7 {[%clk 0:00:03.1]} 46.
Kg2 {[%clk 0:00:15.7]} 46... Qxf4 {[%clk 0:00:03.4]} 47. Bxf4 {[%clk 0:00:16.6]}
47... Nxd4 {[%clk 0:00:03.8]} 48. Bd1 {[%clk 0:00:17.1]} 48... Nc6 {[%clk
0:00:04.3]} 49. Bb3 {[%clk 0:00:16.6]} 49... d4 {[%clk 0:00:04.9]} 50. Bxf7+
{[%clk 0:00:15.6]} 50... Kxf7 {[%clk 0:00:05.8]} 51. Kf3 {[%clk 0:00:16.3]}
51... Bf6 {[%clk 0:00:06.2]} 52. Ke2 {[%clk 0:00:16.6]} 52... Ke6 {[%clk
0:00:06.7]} 53. Bd2 {[%clk 0:00:15.6]} 53... Kd5 {[%clk 0:00:06.9]} 54. Ra1
{[%clk 0:00:16.2]} 54... b6 {[%clk 0:00:07.2]} 55. h5 {[%clk 0:00:15.6]} 55...
gxh5 {[%clk 0:00:06.4]} 56. Rh1 {[%clk 0:00:15.4]} 56... Ke4 {[%clk 0:00:06.6]}
57. b3 {[%clk 0:00:12.6]} 57... d3+ {[%clk 0:00:07.1]} 58. Kd1 {[%clk
0:00:13.2]} 58... Nd4 {[%clk 0:00:07.8]} 59. Rxh5 {[%clk 0:00:13.7]} 59... Nxb3
{[%clk 0:00:07.4]} 60. Rxh7 {[%clk 0:00:13.3]} 60... Nxd2 {[%clk 0:00:07]} 61.
Kxd2 {[%clk 0:00:14.2]} 61... b5 {[%clk 0:00:06.1]} 62. Ra7 {[%clk 0:00:13.7]}
62... a4 {[%clk 0:00:05.4]} 63. Ra5 {[%clk 0:00:13.4]} 63... b4 {[%clk
0:00:05.7]} 64. Rxa4 {[%clk 0:00:12.7]} 64... Bc3+ {[%clk 0:00:06.5]} 65. Kd1
{[%clk 0:00:13.4]} 65... Kf3 {[%clk 0:00:07.3]} 66. Ra5 {[%clk 0:00:14]} 66...
Kg4 {[%clk 0:00:07.1]} 67. Rd5 {[%clk 0:00:14.5]} 67... d2 {[%clk 0:00:06.9]}
68. Rd3 {[%clk 0:00:14]} 68... Kg5 {[%clk 0:00:06.5]} 69. Ke2 {[%clk 0:00:13.3]}
69... Kg4 {[%clk 0:00:06.7]} 70. Kd1 {[%clk 0:00:13.8]} 70... f4 {[%clk
0:00:06.1]} 71. gxf4 {[%clk 0:00:14]} 71... Kxf4 {[%clk 0:00:07]} 72. Rd8 {[%clk
0:00:14.2]} 72... Ke4 {[%clk 0:00:07.5]} 73. Kc2 {[%clk 0:00:14.8]} 73... Ke3
{[%clk 0:00:07.9]} 74. Re8+ {[%clk 0:00:15.1]} 74... Kf3 {[%clk 0:00:08.1]} 75.
Rd8 {[%clk 0:00:10.8]} 75... Ke2 {[%clk 0:00:08.1]} 76. Re8+ {[%clk 0:00:11.3]}
76... Kf2 {[%clk 0:00:08.4]} 77. Rd8 {[%clk 0:00:12.2]} 77... Ke2 {[%clk
0:00:07.3]} 78. Re8+ {[%clk 0:00:12.6]} 78... Kf2 {[%clk 0:00:08]} 79. Kd1
{[%clk 0:00:13.3]} 79... Kf3 {[%clk 0:00:08.2]} 80. Rb8 {[%clk 0:00:13.1]} 80...
Ke3 {[%clk 0:00:08.6]} 81. Kc2 {[%clk 0:00:12.6]} 81... Ke2 {[%clk 0:00:09]} 82.
Rd8 {[%clk 0:00:10.9]} 82... b3+ {[%clk 0:00:08.2]} 83. Kxc3 {[%clk 0:00:08.5]}
83... d1=Q {[%clk 0:00:09.1]} 84. Rxd1 {[%clk 0:00:08.6]} 84... Kxd1 {[%clk
0:00:10]} 85. Kb2 {[%clk 0:00:09.5]} 85... Kd2 {[%clk 0:00:10.4]} 86. Kb1 {[%clk
0:00:07.5]} 86... Kc3 {[%clk 0:00:09.3]} 87. Kc1 {[%clk 0:00:08.1]} 87... Kc4
{[%clk 0:00:09.7]} 88. Kb2 {[%clk 0:00:08.8]} 88... Kb4 {[%clk 0:00:10.4]} 89.
Kb1 {[%clk 0:00:09.7]} 89... Ka4 {[%clk 0:00:11.2]} 90. Kb2 {[%clk 0:00:09.6]}
90... Kb4 {[%clk 0:00:12]} 91. Kb1 {[%clk 0:00:10]} 91... Ka3 {[%clk 0:00:12.8]}
92. Ka1 {[%clk 0:00:10.5]} 92... b2+ {[%clk 0:00:13.5]} 93. Kb1 {[%clk
0:00:11.1]} 93... Kb3 {[%clk 0:00:14.4]} 1/2-1/2